[Event "WSTCC-50 2024"]
[Site "Krakow"]
[Date "2024.07.05"]
[Round "4.3"]
[White "Bellia, Fabrizio"]
[Black "Khachiyan, Melikset"]
[Result "1/2-1/2"]
[ECO "C41"]
[WhiteElo "2401"]
[BlackElo "2435"]
[Annotator "TA"]
[PlyCount "84"]
[EventDate "2024.07.01"]
[EventType "team-tourn"]
[EventCountry "POL"]
[SourceTitle "playchess.com"]
[Source "ChessBase"]
[SourceQuality "1"]
[TimeControl "40/5400+30:1800+30"]

{[%evp 18,84,33,35,47,23,58,54,39,41,62,35,42,30,39,15,18,22,22,21,19,16,14,13,20,0,0,0,0,0,4,4,70,8,116,104,120,111,123,87,90,10,10,14,29,0,27,10,7,9,6,0,0,0,0,0,0,0,0,0,0,0,0,0,0,0,0,0,0]} 1. e4 {[%emt 0:00:05]} d6 {[%emt 0:00:14]} 2. d4 {[%emt 0:00:13]} Nf6 {[%emt 0:00:05]} 3. Nc3 {[%emt 0:00:05]} e5 {[%emt 0:00:04]} 4. Nf3 {[%emt 0:00:15]} Nbd7 {[%emt 0:00:06]} 5. Bc4 {[%emt 0:00:10]} Be7 {[%emt 0:00:07]} 6. O-O {[%emt 0:00:13]} O-O {[%emt 0:00:04]} 7. Re1 {[%emt 0:00:22]} c6 {[%emt 0:00:06]} 8. a4 {[%emt 0:00:23]} a5 {[%emt 0:00:05]} 9. h3 {[%emt 0:01:10]} exd4 {[%emt 0:00:10]} 10. Qxd4 {[%emt 0:01:16]} Nb6 {[%emt 0:00:17]} 11. Bb3 {[%emt 0:11:01]} d5 {[%emt 0:00:36]} (11... Nfd7 {with more complications.} 12. Be3 Nc5 13. Rad1 Re8) 12. exd5 {[%emt 0:02:16]} Nfxd5 {[%emt 0:01:14] White is slightly better.} 13. Nxd5 {[%emt 0:11:00]} Nxd5 {[%emt 0:00:06]} 14. Bxd5 {[%emt 0:08:58]} cxd5 {[%emt 0:00:08]} 15. Bf4 {[%emt 0:01:58]} Bf5 {[%emt 0:16:36]} 16. Qd2 {[%emt 0:05:13]} Be4 {[%emt 0:01:25]} 17. Nd4 {[%emt 0:00:36]} Bc5 {[%emt 0:04:17]} 18. c3 {[%emt 0:02:05]} Qb6 {[%emt 0:02:53]} 19. f3 {[%emt 0:02:12]} Bg6 {[%emt 0:03:13]} 20. Re2 {[%emt 0:04:11]} Rfe8 {[%emt 0:04:42]} 21. Rae1 {[%emt 0:02:14][%cal Ba1e1,Be1e2,Be2e7][%mdl 32]} Rxe2 {[%emt 0:00:30]} 22. Rxe2 {[%emt 0:00:07]} Qb3 {[%emt 0:02:31]} 23. Bd6 {[%emt 0:05:22]} Ba7 {[%emt 0:01:42]} 24. Re7 {[%emt 0:01:41] Black is weak on the dark squares} h6 {[%emt 0:08:37]} (24... Qxa4 $11 25. Rxb7 Qc4 (25... Qc6 $2 26. Rxa7 Qc8 27. Rc7 $18)) 25. Kh1 {[%emt 0:07:08]} (25. Kh2 $1 $14 Bxd4 26. Qxd4) 25... Qb6 {[%emt 0:09:57]} (25... Bxd4 $1 $11 {keeps the balance.} 26. Qxd4 Kh7) 26. Be5 $16 {[%emt 0:02:35]} Rc8 {[%emt 0:15:25]} 27. Kh2 {[%emt 0:09:04]} f6 {[%emt 0:08:44]} 28. Bf4 {[%emt 0:03:26]} Re8 {[%emt 0:02:58] [#]} 29. Nf5 {[%emt 0:08:56]} Rxe7 {[%emt 0:02:10]} 30. Nxe7+ {[%emt 0:00:08]} Kh7 {[%emt 0:02:05]} 31. Nxd5 {[%emt 0:03:01] Active counter play!} (31. Qxd5 {gets mated.} Qg1+ (31... Qxb2 32. Qg8#) 32. Kg3 Bf2+ 33. Kg4 Qxg2+) 31... Qg1+ {[%emt 0:03:27]} 32. Kg3 {[%emt 0:00:05]} Bf7 {[%emt 0:01:14] [#] Hoping for ...Bxd5. A strong pair of Bishops. The position is equal.} 33. c4 {[%emt 0:02:29]} h5 {[%emt 0:03:33][%cal Oa7f2] ( -> ...Bf2+!)} 34. h4 {[%emt 0:00:52]} (34. Qxa5 $2 Bf2#) 34... Bxd5 {[%emt 0:00:39]} 35. cxd5 $11 {[%emt 0:00:36][%mdl 4096] Endgame. KQB-KQB} g5 $1 {[%emt 0:00:01]} 36. hxg5 {[%emt 0:02:10]} Bf2+ $1 {[%emt 0:04:43]} 37. Kh3 $1 {[%emt 0:00:08]} (37. Qxf2 $2 {too greedy.} h4+ 38. Kxh4 Qxf2+ $19) 37... fxg5 {[%emt 0:00:01]} 38. Qd3+ {[%emt 0:03:12]} Kh6 {[%emt 0:00:09]} 39. Bh2 {[%emt 0:00:10] The board is on fire.} g4+ {[%emt 0:02:06]} 40. fxg4 {[%emt 0:00:04]} hxg4+ {[%emt 0:00:03]} 41. Kxg4 {[%emt 0:30:05]} Qxg2+ {[%emt 0:30:48]} 42. Bg3 {[%emt 0:00:19]} Bxg3 {[%emt 0:00:48] Weighted Error Value: White=0.14 (very precise) /Black=0.12 (very precise) .  Mistake:       	White=2     	Black=2      Inaccurate:     	White=1     	Black=1      OK:         	White=7     	Black=15     Best:        	White=1     	Black=2      Strong:       	White=1     	Black=2} 1/2-1/2

[Event "WSTCC-50 2024"]
[Site "Krakow"]
[Date "2024.07.05"]
[Round "4.3"]
[White "Santanna, Paulo"]
[Black "Czyz, Andrzej"]
[Result "1/2-1/2"]
[ECO "A87"]
[WhiteElo "2020"]
[BlackElo "1921"]
[Annotator "RC"]
[PlyCount "128"]
[EventDate "2024.07.01"]
[EventType "team-tourn"]
[EventCountry "POL"]
[SourceTitle "playchess.com"]
[Source "ChessBase"]
[SourceQuality "1"]
[TimeControl "40/5400+30:1800+30"]

1. Nf3 {[%emt 0:00:04]} f5 {[%emt 0:00:28]} 2. d4 {[%emt 0:00:32]} Nf6 {[%emt 0:00:42]} 3. c4 {[%emt 0:00:22]} g6 {[%emt 0:00:25]} 4. g3 {[%emt 0:00:27]} Bg7 {[%emt 0:00:23]} 5. Bg2 {[%emt 0:00:14]} d6 {[%emt 0:01:14]} 6. O-O {[%emt 0:00:36]} O-O {[%emt 0:00:07]} 7. Nc3 {[%emt 0:00:43]} Qe8 {[%emt 0:04:13]} 8. Qb3 {[%emt 0:06:37]} c6 {[%emt 0:03:10]} 9. c5+ {[%emt 0:02:33]} d5 {[%emt 0:02:41]} 10. Bf4 {[%emt 0:00:45]} Nbd7 {[%emt 0:02:35]} 11. Ne5 {[%emt 0:07:43]} e6 {[%emt 0:05:32]} 12. Nf3 {[%emt 0:09:29]} Ne4 {[%emt 0:01:58]} 13. Nxe4 {[%emt 0:01:41]} fxe4 {[%emt 0:00:52]} 14. Ne5 {[%emt 0:00:04]} Nxe5 {[%emt 0:03:11]} 15. Bxe5 {[%emt 0:00:10]} Bxe5 {[%emt 0:00:46]} 16. dxe5 {[%emt 0:00:05]} Rf5 {[%emt 0:07:22]} 17. Qc3 {[%emt 0:03:21]} b6 {[%emt 0:02:28]} 18. f3 {[%emt 0:02:16]} exf3 {[%emt 0:00:26]} 19. Rxf3 {[%emt 0:00:31]} Bd7 {[%emt 0:06:28]} 20. e4 {[%emt 0:04:04]} dxe4 {[%emt 0:01:19]} 21. Rf4 {[%emt 0:00:56]} Rxf4 {[%emt 0:05:47]} 22. gxf4 {[%emt 0:00:07]} Qf8 {[%emt 0:02:29]} 23. Rf1 {[%emt 0:07:46]} bxc5 {[%emt 0:07:06]} 24. Bxe4 {[%emt 0:00:21]} Rb8 {[%emt 0:01:59]} 25. a3 {[%emt 0:01:30]} Qe7 {[%emt 0:05:58]} 26. Rd1 {[%emt 0:01:45]} Rf8 {[%emt 0:06:03]} 27. Qg3 {[%emt 0:02:51]} c4 {[%emt 0:01:21]} 28. Rd6 {[%emt 0:02:29]} Qf7 {[%emt 0:09:27]} 29. Bxc6 {[%emt 0:02:11]} Bc8 {[%emt 0:02:33]} 30. Rd4 {[%emt 0:01:33]} Qc7 {[%emt 0:00:36]} 31. Bg2 {[%emt 0:06:13]} Qb6 {[%emt 0:03:29]} 32. Qf2 {[%emt 0:00:10]} Qb3 {[%emt 0:01:00]} 33. Qd2 {[%emt 0:01:29]} Qb6 {[%emt 0:02:11]} 34. Kh1 {[%emt 0:02:11]} Qc7 {[%emt 0:02:28]} 35. Qb4 {[%emt 0:03:08]} Ba6 {[%emt 0:02:45]} 36. Qd6 {[%emt 0:05:15]} Qxd6 {[%emt 0:02:25]} 37. Rxd6 {[%emt 0:02:35]} Bb5 {[%emt 0:00:15]} 38. Rd4 {[%emt 0:06:36]} Rc8 {[%emt 0:01:47]} 39. Kg1 {[%emt 0:04:26]} Kf7 {[%emt 0:00:57]} 40. Bf1 {[%emt 0:09:47]} a6 {[%emt 0:00:11]} 41. a4 {[%emt 0:06:39]} c3 {[%emt 0:05:14]} 42. bxc3 {[%emt 0:01:03]} Bxf1 {[%emt 0:02:36]} 43. Kxf1 {[%emt 0:00:13]} Rxc3 {[%emt 0:00:03]} 44. Kf2 {[%emt 0:00:27]} Ra3 {[%emt 0:00:30]} 45. Kg2 {[%emt 0:02:53]} a5 {[%emt 0:01:14]} 46. Kf2 {[%emt 0:03:27]} g5 {[%emt 0:00:21]} 47. fxg5 {[%emt 0:00:57]} Kg6 {[%emt 0:00:04]} 48. h4 {[%emt 0:00:35]} Kf5 {[%emt 0:00:03]} 49. Rd7 {[%emt 0:00:19]} Kxe5 {[%emt 0:01:11]} 50. Rxh7 {[%emt 0:00:33]} Rxa4 {[%emt 0:00:23]} 51. g6 {[%emt 0:03:26]} Rg4 {[%emt 0:00:43]} 52. Rh5+ {[%emt 0:05:30]} Kf6 {[%emt 0:00:24]} 53. Rxa5 Kxg6 {[%emt 0:00:59]} 54. Rg5+ {[%emt 0:02:31]} Rxg5 {[%emt 0:00:05]} 55. hxg5 {[%emt 0:00:04]} Kxg5 {[%emt 0:00:16]} 56. Kg3 {[%emt 0:00:07]} Kf5 {[%emt 0:00:30]} 57. Kf3 {[%emt 0:00:02]} e5 {[%emt 0:00:40]} 58. Ke3 {[%emt 0:00:06]} e4 {[%emt 0:00:07]} 59. Ke2 {[%emt 0:00:05]} Kf4 {[%emt 0:00:13]} 60. Kf2 {[%emt 0:00:05]} e3+ {[%emt 0:00:28]} 61. Ke2 {[%emt 0:00:08]} Ke4 {[%emt 0:00:04]} 62. Ke1 {[%emt 0:00:09]} Kf3 {[%emt 0:01:02]} 63. Kf1 {[%emt 0:00:08]} e2+ {[%emt 0:00:35]} 64. Ke1 {[%emt 0:00:30]} Ke3 1/2-1/2

[Event "WSTCC-50 2024"]
[Site "Krakow"]
[Date "2024.07.05"]
[Round "4.3"]
[White "Staeblein, Christoph"]
[Black "Duncan, Chris R"]
[Result "1/2-1/2"]
[ECO "D27"]
[WhiteElo "1991"]
[BlackElo "2156"]
[Annotator "RC"]
[PlyCount "78"]
[EventDate "2024.07.01"]
[EventType "team-tourn"]
[EventCountry "POL"]
[SourceTitle "playchess.com"]
[Source "ChessBase"]
[SourceQuality "1"]
[TimeControl "40/5400+30:1800+30"]

1. d4 {[%emt 0:00:05]} d5 {[%emt 0:00:06]} 2. Nf3 {[%emt 0:00:06]} Nf6 {[%emt 0:00:07]} 3. c4 {[%emt 0:00:07]} dxc4 {[%emt 0:00:30]} 4. e3 {[%emt 0:00:09]} e6 5. Bxc4 c5 {[%emt 0:00:16]} 6. O-O {[%emt 0:00:29]} a6 {[%emt 0:00:00]} 7. dxc5 Qxd1 {[%emt 0:00:00]} 8. Rxd1 {[%emt 0:02:46]} Bxc5 {[%emt 0:03:54]} 9. Be2 {[%emt 0:04:48]} Nbd7 {[%emt 0:01:29]} 10. Nbd2 {[%emt 0:03:47]} O-O {[%emt 0:00:56]} 11. Nb3 {[%emt 0:02:06]} Be7 {[%emt 0:15:13]} 12. Bd2 {[%emt 0:14:24]} Nb6 {[%emt 0:17:03]} 13. Nbd4 {[%emt 0:10:33]} Nbd5 {[%emt 0:05:31]} 14. Ne5 Ne4 {[%emt 0:01:32]} 15. Be1 {[%emt 0:01:44]} f6 {[%emt 0:16:34]} 16. Nc4 e5 17. Nf5 {[%emt 0:10:16]} Bxf5 {[%emt 0:01:35]} 18. Rxd5 {[%emt 0:00:07]} Be6 {[%emt 0:01:22]} 19. Rdd1 {[%emt 0:00:20]} Rfd8 20. Nb6 Rxd1 {[%emt 0:04:27]} 21. Rxd1 {[%emt 0:07:01]} Rd8 {[%emt 0:00:00]} 22. Rxd8+ {[%emt 0:01:00]} Bxd8 {[%emt 0:00:45]} 23. Bc4 {[%emt 0:00:59]} Kf7 24. Bxe6+ {[%emt 0:00:10]} Kxe6 {[%emt 0:00:36]} 25. Na4 {[%emt 0:01:12]} b5 {[%emt 0:02:19]} 26. Nc3 {[%emt 0:10:21]} Nc5 {[%emt 0:00:49]} 27. Nd1 {[%emt 0:00:37]} f5 {[%emt 0:02:10]} 28. f3 {[%emt 0:01:24]} g6 {[%emt 0:07:33]} 29. Kf1 {[%emt 0:00:22]} Bc7 {[%emt 0:02:49]} 30. Ke2 {[%emt 0:01:28]} h5 {[%emt 0:00:25]} 31. Bb4 {[%emt 0:07:54]} Kd5 {[%emt 0:07:38]} 32. Nc3+ {[%emt 0:12:55]} Kc4 {[%emt 0:01:49]} 33. Bxc5 {[%emt 0:00:48]} Kxc5 {[%emt 0:00:04]} 34. Kd3 {[%emt 0:00:08]} e4+ {[%emt 0:04:35]} 35. fxe4 {[%emt 0:00:12]} Bxh2 {[%emt 0:00:10]} 36. exf5 {[%emt 0:00:23]} gxf5 {[%emt 0:00:04]} 37. e4 {[%emt 0:02:00]} b4 {[%emt 0:03:02]} 38. Nd5 {[%emt 0:01:44]} Be5 {[%emt 0:01:08]} 39. b3 {[%emt 0:00:08]} a5 {[%emt 0:01:30]} 1/2-1/2

[Event "WSTCC-50 2024"]
[Site "Krakow"]
[Date "2024.07.05"]
[Round "4.4"]
[White "Novikov, Igor"]
[Black "D'Amore, Carlo"]
[Result "1/2-1/2"]
[ECO "D15"]
[WhiteElo "2509"]
[BlackElo "2357"]
[Annotator "RC"]
[PlyCount "75"]
[EventDate "2024.07.01"]
[EventType "team-tourn"]
[EventCountry "POL"]
[SourceTitle "playchess.com"]
[Source "ChessBase"]
[SourceQuality "1"]
[TimeControl "40/5400+30:1800+30"]

1. d4 {[%emt 0:00:05]} d5 {[%emt 0:00:32]} 2. c4 {[%emt 0:00:09]} c6 {[%emt 0:00:07]} 3. Nf3 {[%emt 0:00:14]} Nf6 {[%emt 0:00:08]} 4. Nc3 {[%emt 0:00:25]} a6 {[%emt 0:01:01]} 5. e3 {[%emt 0:00:35]} Bf5 {[%emt 0:01:59]} 6. Ne5 {[%emt 0:01:31]} Nbd7 {[%emt 0:04:06]} 7. Qb3 {[%emt 0:02:02]} Qc7 {[%emt 0:00:09]} 8. cxd5 {[%emt 0:03:13]} Nxe5 {[%emt 0:00:47]} 9. dxe5 {[%emt 0:00:17]} Nxd5 {[%emt 0:00:07]} 10. Nxd5 {[%emt 0:02:38]} cxd5 {[%emt 0:00:05]} 11. Bd2 {[%emt 0:00:34]} Qxe5 {[%emt 0:11:34]} 12. Qxb7 {[%emt 0:18:40]} Rb8 {[%emt 0:00:12]} 13. Qxa6 {[%emt 0:09:49]} Qxb2 {[%emt 0:00:08]} 14. Rc1 {[%emt 0:00:27]} e5 {[%emt 0:01:19]} 15. Bd3 {[%emt 0:27:02]} Bxd3 {[%emt 0:20:52]} 16. Qxd3 {[%emt 0:00:15]} Bb4 {[%emt 0:00:16]} 17. Rb1 {[%emt 0:05:38]} Qxd2+ {[%emt 0:13:12]} 18. Qxd2 {[%emt 0:00:03]} Bxd2+ {[%emt 0:00:06]} 19. Kxd2 {[%emt 0:00:03]} Kd7 {[%emt 0:00:05]} 20. a4 {[%emt 0:01:09]} Rxb1 {[%emt 0:10:22]} 21. Rxb1 {[%emt 0:00:04]} Ra8 {[%emt 0:00:06]} 22. Rb7+ {[%emt 0:01:06]} Ke6 {[%emt 0:05:55]} 23. Rb4 {[%emt 0:00:39]} Kd6 {[%emt 0:00:12]} 24. Kc3 {[%emt 0:00:47]} Ra6 {[%emt 0:04:51]} 25. Kb3 {[%emt 0:01:42]} Kc7 {[%emt 0:00:06]} 26. Rb5 {[%emt 0:01:22]} Rf6 {[%emt 0:03:15]} 27. f3 {[%emt 0:08:03]} e4 {[%emt 0:04:37]} 28. f4 {[%emt 0:06:09]} d4 {[%emt 0:00:07]} 29. Rb4 {[%emt 0:03:55]} dxe3 {[%emt 0:03:28]} 30. Rxe4 {[%emt 0:00:07]} e2 {[%emt 0:00:14]} 31. Rxe2 {[%emt 0:00:38]} Rxf4 {[%emt 0:00:05]} 32. g3 {[%emt 0:00:38]} Rf1 {[%emt 0:00:30]} 33. Kc4 {[%emt 0:01:39]} Kc6 {[%emt 0:01:16]} 34. a5 {[%emt 0:02:07]} Rc1+ {[%emt 0:02:33]} 35. Kb4 {[%emt 0:00:06]} Rb1+ {[%emt 0:00:05]} 36. Kc4 {[%emt 0:00:11]} Rc1+ {[%emt 0:00:05]} 37. Kb4 {[%emt 0:01:02]} Rb1+ {[%emt 0:00:04]} 38. Kc4 {[%emt 0:00:40]} 1/2-1/2

[Event "WSTCC-50 2024"]
[Site "Krakow"]
[Date "2024.07.05"]
[Round "4.4"]
[White "Townsend, M Paul"]
[Black "Koop, Thilo"]
[Result "1/2-1/2"]
[ECO "A37"]
[WhiteElo "2147"]
[BlackElo "2088"]
[Annotator "RC"]
[PlyCount "54"]
[EventDate "2024.07.01"]
[EventType "team-tourn"]
[EventCountry "POL"]
[SourceTitle "playchess.com"]
[Source "ChessBase"]
[SourceQuality "1"]
[TimeControl "40/5400+30:1800+30"]

1. c4 {[%emt 0:00:09]} c5 {[%emt 0:01:23]} 2. g3 {[%emt 0:00:22]} Nc6 {[%emt 0:00:28]} 3. Bg2 {[%emt 0:00:08]} g6 {[%emt 0:00:08]} 4. Nc3 {[%emt 0:00:19]} Bg7 {[%emt 0:00:08]} 5. Nf3 {[%emt 0:00:19]} e5 {[%emt 0:00:22]} 6. O-O {[%emt 0:04:04]} Nge7 {[%emt 0:00:21]} 7. d3 {[%emt 0:03:01]} d6 {[%emt 0:00:21]} 8. Rb1 {[%emt 0:04:08]} O-O {[%emt 0:01:38]} 9. a3 {[%emt 0:00:32]} a5 {[%emt 0:00:11]} 10. Bd2 {[%emt 0:01:12]} Rb8 {[%emt 0:00:40]} 11. Ne1 {[%emt 0:08:49]} Be6 {[%emt 0:01:50]} 12. Nc2 {[%emt 0:04:33]} d5 {[%emt 0:00:21]} 13. cxd5 {[%emt 0:00:52]} Nxd5 {[%emt 0:00:09]} 14. b4 {[%emt 0:07:43]} cxb4 {[%emt 0:08:03]} 15. Nxd5 {[%emt 0:00:38]} Bxd5 {[%emt 0:00:08]} 16. axb4 {[%emt 0:00:28]} Bxg2 {[%emt 0:00:56]} 17. Kxg2 {[%emt 0:00:08]} Qd5+ {[%emt 0:00:13]} 18. Kg1 {[%emt 0:01:54]} axb4 {[%emt 0:00:44]} 19. Nxb4 {[%emt 0:01:03]} Nxb4 {[%emt 0:00:38]} 20. Bxb4 {[%emt 0:12:51]} Rfc8 {[%emt 0:01:47]} 21. Qb3 {[%emt 0:00:49]} Qd7 {[%emt 0:02:36]} 22. Rfc1 {[%emt 0:02:39]} h5 {[%emt 0:09:49]} 23. h4 {[%emt 0:12:12]} Qg4 {[%emt 0:03:08]} 24. Bd6 {[%emt 0:03:54]} Rxc1+ {[%emt 0:04:02]} 25. Rxc1 {[%emt 0:00:02]} Rc8 {[%emt 0:00:12]} 26. Rxc8+ {[%emt 0:12:37]} Qxc8 {[%emt 0:00:07]} 27. Qb5 {[%emt 0:01:25]} Qc6 {[%emt 0:00:21]} 1/2-1/2

[Event "WSTCC-50 2024"]
[Site "Krakow"]
[Date "2024.07.05"]
[Round "4.4"]
[White "Wielosz, Jaroslaw"]
[Black "Serafim Junior, Arnor"]
[Result "1/2-1/2"]
[ECO "A16"]
[WhiteElo "1920"]
[BlackElo "1770"]
[Annotator "NA RC"]
[PlyCount "97"]
[EventDate "2024.07.01"]
[EventType "team-tourn"]
[EventCountry "POL"]
[SourceTitle "playchess.com"]
[Source "ChessBase"]
[SourceQuality "1"]
[TimeControl "40/5400+30:1800+30"]

1. c4 {[%emt 0:00:08]} Nf6 {[%emt 0:00:46]} 2. Nc3 {[%emt 0:00:14]} g6 {[%emt 0:01:27]} 3. Nf3 {[%emt 0:00:21]} Bg7 {[%emt 0:00:20]} 4. g3 {[%emt 0:00:20]} O-O {[%emt 0:02:06]} 5. Bg2 {[%emt 0:00:08]} d6 {[%emt 0:02:03]} 6. O-O {[%emt 0:00:29]} e5 {[%emt 0:01:04]} 7. d3 {[%emt 0:00:17]} Re8 {[%emt 0:01:13]} 8. Bg5 {[%emt 0:06:48]} h6 {[%emt 0:00:48]} 9. Bxf6 {[%emt 0:00:50]} Bxf6 {[%emt 0:00:11]} 10. Rb1 {[%emt 0:00:44]} a5 {[%emt 0:03:33]} 11. a3 {[%emt 0:00:29]} c6 {[%emt 0:15:29]} 12. b4 {[%emt 0:23:06]} axb4 {[%emt 0:00:19]} 13. axb4 {[%emt 0:02:01]} Be6 {[%emt 0:04:39]} 14. Ne4 {[%emt 0:09:02]} Bg7 {[%emt 0:00:21]} 15. c5 {[%emt 0:01:54]} Bf8 {[%emt 0:08:07]} 16. Nxd6 {[%emt 0:01:50]} Bxd6 {[%emt 0:00:05]} 17. cxd6 {[%emt 0:00:11]} Qxd6 {[%emt 0:00:24]} 18. Qd2 {[%emt 0:07:19]} Kh7 {[%emt 0:02:22]} 19. Ra1 {[%emt 0:02:50]} Na6 {[%emt 0:01:50]} 20. Rfb1 {[%emt 0:03:16]} Nc7 {[%emt 0:01:30]} 21. Qb2 {[%emt 0:04:26]} f6 {[%emt 0:11:33]} 22. Nd2 {[%emt 0:03:19]} Nb5 {[%emt 0:06:54]} 23. Ne4 {[%emt 0:05:42]} Qe7 {[%emt 0:02:39]} 24. e3 {[%emt 0:01:53]} Bd5 {[%emt 0:01:37]} 25. Nc3 {[%emt 0:01:43]} Nxc3 {[%emt 0:01:53]} 26. Qxc3 {[%emt 0:00:13]} Bxg2 {[%emt 0:05:26]} 27. Kxg2 {[%emt 0:00:09]} Qd7 {[%emt 0:01:01]} 28. Qc4 {[%emt 0:04:31]} Red8 {[%emt 0:04:51]} 29. Rxa8 {[%emt 0:01:11]} Rxa8 {[%emt 0:00:04]} 30. b5 {[%emt 0:02:10]} Qd5+ {[%emt 0:03:44]} 31. Qxd5 {[%emt 0:01:14]} cxd5 {[%emt 0:00:06]} 32. Rc1 {[%emt 0:00:36]} Ra3 {[%emt 0:04:14]} 33. Rc7+ {[%emt 0:00:22]} Kg8 {[%emt 0:00:02]} 34. d4 {[%emt 0:05:04]} exd4 {[%emt 0:00:09]} 35. exd4 {[%emt 0:00:10]} Ra4 {[%emt 0:00:29]} 36. Rxb7 {[%emt 0:00:29]} Rxd4 {[%emt 0:00:14]} 37. b6 {[%emt 0:00:44]} Rb4 {[%emt 0:00:20]} 38. Kf3 {[%emt 0:02:35]} d4 {[%emt 0:06:43]} 39. Ke4 {[%emt 0:01:40]} Kh8 {[%emt 0:04:50]} 40. h4 {[%emt 0:00:58]} h5 {[%emt 0:01:27]} 41. f3 {[%emt 0:37:40]} Kg8 {[%emt 0:03:56]} 42. g4 {[%emt 0:00:00]} hxg4 {[%emt 0:04:49]} 43. fxg4 {[%emt 0:00:00]} f5+ {[%emt 0:07:46]} 44. gxf5 {[%emt 0:00:00]} gxf5+ {[%emt 0:00:03]} 45. Kxf5 {[%emt 0:00:00]} d3 {[%emt 0:00:08]} 46. Rd7 {[%emt 0:00:00]} Rxb6 {[%emt 0:00:36]} 47. Rxd3 {[%emt 0:00:00]} Rb5+ {[%emt 0:00:53]} 48. Kg4 {[%emt 0:00:00]} Kg7 {[%emt 0:00:42]} 49. Rf3 1/2-1/2

[Event "WSTCC-50 2024"]
[Site "Krakow"]
[Date "2024.07.05"]
[Round "4.5"]
[White "Adams, Michael"]
[Black "Hjartarson, Johann"]
[Result "1-0"]
[ECO "B40"]
[WhiteElo "2670"]
[BlackElo "2472"]
[Annotator "TA"]
[PlyCount "37"]
[EventDate "2024.07.01"]
[EventType "team-tourn"]
[EventCountry "POL"]
[SourceTitle "playchess.com"]
[Source "ChessBase"]
[SourceQuality "1"]
[TimeControl "40/5400+30:1800+30"]

{[%evp 9,37,30,39,27,39,36,39,40,44,35,43,52,54,42,95,95,89,52,38,45,108,106,337,309,341,324,454,445,444,398]} 1. e4 {[%emt 0:00:03]} c5 {[%emt 0:00:07]} 2. Nf3 {[%emt 0:00:08]} e6 {[%emt 0:00:06]} 3. Nc3 {[%emt 0:00:09]} a6 {[%emt 0:00:28]} 4. g3 {[%emt 0:00:12]} d6 {[%emt 0:05:39]} 5. Bg2 {[%emt 0:00:22]} Nf6 {[%emt 0:00:07]} 6. e5 {[%emt 0:06:47]} dxe5 {[%emt 0:00:24]} 7. Nxe5 {[%emt 0:00:06]} Qc7 {[%emt 0:09:09]} 8. Nc4 {[%emt 0:03:31] White is slightly better.} Bd7 {[%emt 0:05:00]} 9. d3 {[%emt 0:01:21] Hoping for Bf4.} Bc6 $1 {[%emt 0:00:22]} 10. Bf4 {[%emt 0:01:11]} Qd8 {[%emt 0:00:08]} 11. Ne4 {[%emt 0:01:13]} Nd5 {[%emt 0:04:31]} (11... Be7 $14) 12. Be5 $16 {[%emt 0:16:06] White is much more active.} Nd7 {[%emt 0:05:09]} 13. O-O {[%emt 0:05:18] Black must now prevent f4.} Nxe5 {[%emt 0:17:52]} 14. Nxe5 {[%emt 0:00:09] aiming for Qh5.} Rc8 {[%emt 0:03:59] [#]} (14... Be7 $1 $14) 15. Qh5 $1 $40 {[%emt 0:07:19][%csl Ge5][%cal Rh5f7][%mdl 128] White goes for the king.} g6 $2 {[%emt 0:01:54] [#] This costs Black the game.} (15... Rc7 $16 {was worth a try.}) 16. Nxg6 $1 $18 {[%emt 0:04:07][%mdl 512]} fxg6 {[%emt 0:09:19]} (16... hxg6 17. Qxh8) 17. Qe5 {[%emt 0:00:07][%csl LRe6,LRh8]} Qe7 {[%emt 0:01:54]} (17... Nb4 $142 18. Qxh8 Qe7) 18. Qxh8 {[%emt 0:01:54]} Kd7 {[%emt 0:00:24]} 19. d4 {[%emt 0:13:38] Weighted Error Value: White=0.03 (flawless) /Black=0.45.  Loses game:     	---       	Black=1      Mistake:       	---       	Black=3      Inaccurate:     	White=1     	---        OK:         	White=6     	Black=4      Best:        	White=1     	Black=2      Strong:       	White=1     	Black=1      Brilliant:      	White=1     	---} 1-0

[Event "WSTCC-50 2024"]
[Site "Krakow"]
[Date "2024.07.05"]
[Round "4.5"]
[White "Oratovsky, Michael"]
[Black "Lalic, Susan K"]
[Result "1-0"]
[ECO "C00"]
[WhiteElo "2417"]
[BlackElo "2235"]
[Annotator "RC"]
[PlyCount "89"]
[EventDate "2024.07.01"]
[EventType "team-tourn"]
[EventCountry "POL"]
[SourceTitle "playchess.com"]
[Source "ChessBase"]
[SourceQuality "1"]
[TimeControl "40/5400+30:1800+30"]

1. e4 {[%emt 0:12:51]} e6 {[%emt 0:00:10]} 2. d3 {[%emt 0:03:51]} d5 {[%emt 0:00:09]} 3. Nd2 {[%emt 0:00:08]} Nf6 {[%emt 0:01:03]} 4. Ngf3 {[%emt 0:00:15]} Be7 {[%emt 0:06:45]} 5. g3 {[%emt 0:04:00]} b6 {[%emt 0:05:28]} 6. Bg2 {[%emt 0:02:22]} Bb7 {[%emt 0:01:49]} 7. O-O {[%emt 0:03:13]} c5 {[%emt 0:09:50]} 8. Re1 {[%emt 0:04:25]} Nc6 {[%emt 0:10:02]} 9. c3 {[%emt 0:00:54]} Qc7 {[%emt 0:08:25]} 10. Nf1 {[%emt 0:01:57]} Rd8 {[%emt 0:06:01]} 11. Bf4 {[%emt 0:08:50]} Qc8 {[%emt 0:02:35]} 12. e5 {[%emt 0:03:35]} Nd7 {[%emt 0:03:38]} 13. d4 {[%emt 0:01:37]} h6 {[%emt 0:08:56]} 14. h4 {[%emt 0:03:57]} Nf8 {[%emt 0:04:32]} 15. Rc1 {[%emt 0:13:49]} Rd7 {[%emt 0:01:15]} 16. h5 {[%emt 0:01:48]} g5 {[%emt 0:13:32]} 17. hxg6 {[%emt 0:12:32]} fxg6 {[%emt 0:00:50]} 18. Be3 {[%emt 0:02:14]} Qd8 {[%emt 0:05:18]} 19. N1h2 {[%emt 0:00:14]} h5 {[%emt 0:03:45]} 20. Qd2 {[%emt 0:02:04]} cxd4 {[%emt 0:00:40]} 21. Nxd4 {[%emt 0:01:32]} Nxd4 {[%emt 0:01:37]} 22. cxd4 {[%emt 0:03:08]} Kf7 {[%emt 0:00:57]} 23. g4 {[%emt 0:01:00]} h4 {[%emt 0:00:23]} 24. Bh3 {[%emt 0:01:09]} g5 {[%emt 0:00:58]} 25. f4 {[%emt 0:00:55]} gxf4 {[%emt 0:00:31]} 26. Bxf4 {[%emt 0:00:07]} Kg7 {[%emt 0:03:26]} 27. g5 {[%emt 0:00:57]} Qe8 {[%emt 0:00:02]} 28. Ng4 {[%emt 0:00:23]} Qg6 {[%emt 0:00:11]} 29. Nf6 {[%emt 0:00:14]} Bxf6 {[%emt 0:00:23]} 30. exf6+ {[%emt 0:00:08]} Kf7 {[%emt 0:00:24]} 31. Rc3 {[%emt 0:04:25]} Rg8 {[%emt 0:00:10]} 32. Kh2 {[%emt 0:00:56]} Qh5 {[%emt 0:00:10]} 33. Rce3 {[%emt 0:02:38]} Rxg5 {[%emt 0:02:00]} 34. Bxg5 {[%emt 0:01:48]} Qxg5 {[%emt 0:00:01]} 35. Qf2 {[%emt 0:00:18]} Bc8 {[%emt 0:01:26]} 36. Rxe6 {[%emt 0:01:56]} Qg3+ {[%emt 0:00:34]} 37. Qxg3 {[%emt 0:00:07]} hxg3+ {[%emt 0:00:01]} 38. Kxg3 {[%emt 0:00:08]} Nxe6 {[%emt 0:00:05]} 39. Bxe6+ {[%emt 0:00:22]} Kxf6 {[%emt 0:00:01]} 40. Bxd7 {[%emt 0:00:12]} Bxd7 {[%emt 0:00:01]} 41. Kf4 {[%emt 0:30:54]} a5 {[%emt 0:32:18]} 42. Rh1 {[%emt 0:00:20]} Bf5 {[%emt 0:00:27]} 43. Rh6+ {[%emt 0:00:12]} Bg6 {[%emt 0:00:02]} 44. a4 {[%emt 0:00:33]} Kg7 {[%emt 0:00:16]} 45. Rxg6+ {[%emt 0:00:13]} 1-0